[Event "4th Tata Steel India Rapid Women 2022"]
[Site "Kolkota"]
[Date "2022.12.01"]
[Round "8.1"]
[White "Muzychuk, Anna"]
[Black "Dzagnidze, Nana"]
[Result "1/2-1/2"]
[ECO "B44"]
[WhiteElo "2525"]
[BlackElo "2517"]
[Annotator "TA"]
[PlyCount "112"]
[EventDate "2022.11.29"]
[EventType "tourn"]
[EventCountry "IND"]
[SourceTitle "playchess.com"]
[Source "ChessBase"]
[SourceQuality "1"]
[TimeControl "900+10"]

{[%evp 9,111,18,63,59,119,108,114,114,114,125,116,112,100,108,105,100,104,100,110,108,111,99,109,109,109,107,130,109,112,111,113,54,61,73,66,6,14,14,6,18,18,0,21,8,8,22,16,8,38,38,38,11,14,7,15,0,8,8,7,8,18,8,8,0,53,58,65,68,125,125,507,462,29972,29973,29972,29973,6530,1443,1490,5073,2337,1186,830,784,1042,1431,1153,0,0,0,0,0,0,0,0,0,0,0,0,0,0,0,0,0]} 1. e4 {[%emt 0:00:01]} c5 {[%emt 0:00:02]} 2. Nf3 {[%emt 0:00:02]} e6 {[%emt 0:00:02]} 3. d4 {[%emt 0:00:02]} cxd4 {[%emt 0:00:02]} 4. Nxd4 {[%emt 0:00:01]} Nc6 {[%emt 0:00:01]} 5. Bf4 {[%emt 0:00:12]} Nxd4 {[%emt 0:02:48]} 6. Qxd4 {[%emt 0:00:05] B44: Sicilian: Taimanov: 5 Nb5.} d6 {[%emt 0:00:04]} (6... Nf6 $14) 7. Nc3 $16 {[%emt 0:05:28] [#]} Bd7 $146 {[%emt 0:07:00] Prevents Nb5.} ({Predecessor:} 7... e5 8. Bb5+ Bd7 9. Bxe5 dxe5 10. Qxe5+ Qe7 11. Bxd7+ Kxd7 12. O-O-O+ Kc8 13. Qg3 Nf6 14. Rd3 {1-0 (25) Steinmetz,L-Cokova,T freechess.de 2021}) 8. Bxd6 {[%emt 0:03:46] White is much more active. White is better.} Bxd6 {[%emt 0:00:06]} 9. Qxd6 {[%emt 0:00:07]} Bc6 {[%emt 0:00:05]} 10. O-O-O {[%emt 0:02:31]} Qxd6 {[%emt 0:00:22]} 11. Rxd6 {[%emt 0:00:01]} Ke7 {[%emt 0:00:06]} 12. Rd2 {[%emt 0:00:27]} Nf6 {[%emt 0:00:06]} 13. f3 {[%emt 0:00:01]} a6 {[%emt 0:01:16]} 14. Be2 {[%emt 0:00:17]} Rac8 {[%emt 0:00:10]} 15. Nd1 {[%emt 0:01:47]} g5 {[%emt 0:02:11]} 16. Ne3 {[%emt 0:00:33]} b5 {[%emt 0:00:32]} 17. Rhd1 {[%emt 0:00:33]} Rc7 {[%emt 0:00:19]} 18. Rd3 {[%emt 0:00:50]} Rhc8 {[%emt 0:00:12]} 19. Rc3 {[%emt 0:00:14]} Nd7 {[%emt 0:00:20] [#]} 20. a4 {[%emt 0:00:30]} ({White should try} 20. Nd5+ $1 $16 {[%mdl 512]} exd5 (20... Bxd5 21. Rxc7) 21. exd5 Bxd5 22. Rxc7 (22. Rxd5 Rxc3 23. bxc3 h6 $14) 22... Rxc7 23. Rxd5) 20... b4 $14 {[%emt 0:00:08]} 21. Rc4 {[%emt 0:00:25]} Bxa4 {[%emt 0:00:53]} 22. b3 {[%emt 0:00:22]} (22. Rxb4 $6 Bxc2 23. Rdd4 Bxe4+ 24. Kd1 Bg6 $15) (22. Rxc7 $14 Rxc7 23. Bxa6) 22... Bb5 $11 {[%emt 0:01:10]} 23. Rxc7 {[%emt 0:00:02]} Rxc7 {[%emt 0:00:01]} 24. Bxb5 {[%emt 0:00:01]} axb5 {[%emt 0:00:00][%mdl 4096] Endgame KRN-KRN} 25. Rd4 {[%emt 0:00:01]} (25. h4 $5 {[%cal Rh4g5]}) 25... Nc5 {[%emt 0:00:01]} 26. Kd2 {[%emt 0:00:19]} (26. Rxb4 $2 Nd3+ 27. Kb1 Nxb4 $19) 26... Rd7 {[%emt 0:00:24]} 27. Rxd7+ {[%emt 0:00:16]} Nxd7 {[%emt 0:00:24] KN-KN} 28. Ng4 {[%emt 0:00:06]} Kd6 {[%emt 0:00:16]} 29. Nf2 {[%emt 0:00:08]} Ne5 {[%emt 0:00:23]} 30. Nd3 {[%emt 0:00:02]} Nc6 $1 {[%emt 0:00:13]} 31. Ke3 {[%emt 0:00:12]} e5 $1 {[%emt 0:00:03]} 32. g3 {[%emt 0:00:08]} f6 {[%emt 0:00:13]} 33. h4 {[%emt 0:00:07]} h6 {[%emt 0:00:21]} 34. h5 {[%emt 0:00:16]} Ke7 {[%emt 0:00:07]} 35. f4 {[%emt 0:00:10]} exf4+ {[%emt 0:00:21]} 36. gxf4 {[%emt 0:00:01]} Ke6 {[%emt 0:00:08]} (36... Kf8 $11) 37. Nf2 $1 $14 {[%emt 0:00:52] And now Ng4 would win.} gxf4+ 38. Kxf4 {[%emt 0:00:01] Strongly threatening Ng4.} Nd4 {[%emt 0:00:04]} (38... Nd8 $14) 39. Ng4 $16 {[%emt 0:00:01]} Nxc2 $2 {[%emt 0:00:01][%mdl 8192]} (39... Ne2+ $16 {is tougher.} 40. Ke3 Ng3) 40. Nxh6 $18 {[%emt 0:00:01]} Nd4 {[%emt 0:00:13]} (40... Ne1 $18 41. Nf5 Nd3+ 42. Ke3 Ne5) 41. Nf5 {[%emt 0:00:01]} Nc6 {[%emt 0:00:38]} 42. h6 {[%emt 0:00:08]} Ne5 {[%emt 0:00:08]} 43. Nd4+ {[%emt 0:00:06]} (43. h7 $142 Kf7 44. Kg3 (44. h8=R Ng6+ 45. Kf3 Nxh8 $11) (44. h8=N+ Kg8 $11)) 43... Kf7 {[%emt 0:00:01]} 44. Kf5 $1 {[%emt 0:00:08]} (44. Nxb5 Kg6 $11) 44... Ng6 {[%emt 0:00:04]} 45. Nc6 {[%emt 0:00:25]} ({Not} 45. Nxb5 Ne7+ 46. Kf4 Kg6 $16) 45... Nh4+ {[%emt 0:00:05]} 46. Kg4 {[%emt 0:00:01]} Ng6 {[%emt 0:00:01]} 47. Nd8+ {[%emt 0:00:38]} Ke7 {[%emt 0:00:12] [#]} 48. h7 $2 {[%emt 0:00:02]} Kxd8 $11 {[%emt 0:00:39] KN-K3P. The position is equal.} 49. Kf5 {[%emt 0:00:01][%csl LRf6,LRg6]} (49. Kh5 $5 Nh8 $8 50. Kh6 $11) 49... Nh8 {[%emt 0:00:08]} 50. Kxf6 {[%emt 0:00:39] White wants to mate with e5.} Ke8 {[%emt 0:00:00]} 51. e5 {[%emt 0:00:02] Intending Kg7 and mate.} (51. Kg7 $5 Nf7 $8 52. Kf6 $11 (52. h8=R+ Nxh8 53. Kf6 Kd7 $19) (52. h8=B $2 {perishes.} Ke7 $19)) 51... Kf8 {[%emt 0:00:22]} 52. e6 {[%emt 0:00:03] Prevents Nf7.} Nf7 $1 {[%emt 0:00:02]} 53. Kg6 {[%emt 0:00:27][%mdl 64]} Nh8+ {[%emt 0:00:09]} 54. Kh6 {[%emt 0:00:01]} Ke7 {[%emt 0:00:06]} 55. Kg7 {[%emt 0:00:03]} Kxe6 $1 {[%emt 0:00:01]} 56. Kxh8 {[%emt 0:00:01]} Kf7 {[%emt 0:00:01] Blacks defense is rewarded with a draw.   Weighted Error Value: White=0.19 (very precise) /Black=0.34} 1/2-1/2

[Event "4th Tata Steel India Rapid Women 2022"]
[Site "Kolkota"]
[Date "2022.12.01"]
[Round "8.3"]
[White "Muzychuk, Mariya"]
[Black "Harika, Dronavalli"]
[Result "1/2-1/2"]
[ECO "B21"]
[WhiteElo "2528"]
[BlackElo "2507"]
[Annotator "TA"]
[PlyCount "50"]
[EventDate "2022.11.29"]
[EventType "tourn"]
[EventCountry "IND"]
[SourceTitle "playchess.com"]
[Source "ChessBase"]
[SourceQuality "1"]
[TimeControl "900+10"]

{[%evp 10,50,-12,-34,-33,-34,-37,-37,-26,-24,-17,-24,0,0,0,0,-2,-10,-21,-31,-12,-12,-13,-13,-14,-16,-17,-14,-12,-16,-8,-8,-8,-8,-8,-8,-8,-9,-8,-12,-12,-13,-8]} 1. e4 {[%emt 0:00:01]} c5 {[%emt 0:00:01]} 2. c3 {[%emt 0:00:02]} e5 {[%emt 0:00:07]} 3. d4 {[%emt 0:00:34]} cxd4 {[%emt 0:00:29]} 4. cxd4 {[%emt 0:00:01]} exd4 {[%emt 0:00:04]} 5. Qxd4 {[%emt 0:00:12]} Nc6 {[%emt 0:00:08]} 6. Qd1 {[%emt 0:02:15]} Nf6 {[%emt 0:00:15] B21: Sicilian: 2 f4 and Morra Gambit.} 7. Nc3 {[%emt 0:00:08]} Bb4 {[%emt 0:00:12]} 8. Bd3 {[%emt 0:01:36]} d5 {[%emt 0:02:46] Black is slightly better.} 9. exd5 {[%emt 0:00:15]} Qxd5 {[%emt 0:01:30] [#] Threatens to win with ...Bg4.} 10. Nf3 $1 {[%emt 0:00:59]} Ne5 {[%emt 0:04:30]} 11. Nxe5 {[%emt 0:03:44]} ({Much worse is} 11. Qe2 Bxc3+ 12. bxc3 Qxd3 $17) 11... Qxe5+ {[%emt 0:00:02]} 12. Qe2 {[%emt 0:00:02]} Qxe2+ {[%emt 0:00:13]} 13. Kxe2 {[%emt 0:00:02]} O-O {[%emt 0:00:51] [#]} 14. Be3 $146 {[%emt 0:01:09]} ({Predecessor:} 14. Rd1 Be6 15. Bg5 Bxc3 16. bxc3 Nd5 17. Rac1 Rac8 18. Bd2 Rfe8 19. Kf1 a6 20. c4 Nb6 21. c5 {½-½ (38) Solinas,C (2060)-Colombo,S (1864) Pedavena 2006}) 14... Bxc3 {[%emt 0:01:49]} 15. bxc3 {[%emt 0:00:01] The position is equal.} Nd5 {[%emt 0:00:05]} 16. Bd4 {[%emt 0:00:22]} Nf4+ {[%emt 0:00:36]} 17. Kd2 $1 {[%emt 0:00:02]} Nxd3 {[%emt 0:00:08]} 18. Kxd3 {[%emt 0:00:02]} Bf5+ {[%emt 0:00:09]} 19. Kd2 {[%emt 0:00:01]} a6 {[%emt 0:00:24]} 20. Rhe1 {[%emt 0:00:35]} Rfe8 {[%emt 0:00:02]} 21. f3 {[%emt 0:00:10]} Bd7 {[%emt 0:00:07]} 22. Rxe8+ {[%emt 0:01:24]} Rxe8 {[%emt 0:00:02]} 23. a4 {[%emt 0:00:22]} f6 {[%emt 0:00:10]} 24. a5 {[%emt 0:00:31]} Bb5 {[%emt 0:00:05] [#] ...Re2+ is the strong threat.} 25. Re1 {[%emt 0:00:11] Against Re2+} Rxe1 {[%emt 0:00:03] Weighted Error Value: White=0.02 (flawless) /Black=0.04 (flawless)} 1/2-1/2

[Event "4th Tata Steel India Rapid Women 2022"]
[Site "Kolkota"]
[Date "2022.12.01"]
[Round "8.4"]
[White "Savitha Shri B"]
[Black "Ushenina, Anna"]
[Result "0-1"]
[ECO "B28"]
[WhiteElo "2411"]
[BlackElo "2454"]
[Annotator "TA"]
[PlyCount "56"]
[EventDate "2022.11.29"]
[EventType "tourn"]
[EventCountry "IND"]
[SourceTitle "playchess.com"]
[Source "ChessBase"]
[SourceQuality "1"]
[TimeControl "900+10"]

{[%evp 9,56,0,0,0,0,0,0,-3,0,-10,-12,-18,-15,-22,-25,-72,-64,-51,-54,-67,-79,-207,-136,-83,-25,-209,-88,-87,170,171,166,154,365,-29986,-29987,-29990,-29991,-29991,0,0,0,-29991,-29992,-29992,-29993,-29993,-29994,-29995,-29995]} 1. e4 {[%emt 0:00:03]} c5 {[%emt 0:00:05]} 2. Nf3 {[%emt 0:00:02]} a6 {[%emt 0:00:03]} 3. c4 {[%emt 0:00:05]} Nc6 {[%emt 0:00:02]} 4. Nc3 {[%emt 0:00:01]} e5 {[%emt 0:00:27]} 5. d3 {[%emt 0:00:38]} d6 {[%emt 0:01:13]} 6. Be2 {[%emt 0:01:45] B28: Sicilian: 2 Nf3 a6 (O'Kelly Variation).} Be7 {[%emt 0:00:13]} 7. O-O {[%emt 0:00:39]} f5 {[%emt 0:02:32]} 8. Nd5 {[%emt 0:04:36] The position is equal.} Nf6 {[%emt 0:00:18] [#]} 9. exf5 $146 {[%emt 0:01:40]} ({Predecessor:} 9. Nd2 f4 10. g3 fxg3 11. fxg3 O-O 12. Bf3 Nd4 13. Nxf6+ Bxf6 14. Bg2 Bg5 15. Rxf8+ Qxf8 {½-½ (23) Adamowicz,M (1790)-Pietroczuk,R (2034) Polanica Zdroj 2008}) 9... Bxf5 {[%emt 0:00:23]} 10. Nh4 {[%emt 0:01:34]} (10. Nxf6+ {simplifies} Bxf6 11. Be3 O-O 12. Nd2) 10... Bd7 {[%emt 0:04:39]} 11. Bh5+ {[%emt 0:01:22]} (11. Nf3 {simplifies} O-O 12. Nxf6+ Rxf6 13. Be3) 11... g6 {[%emt 0:01:30]} 12. Bxg6+ {[%emt 0:02:49]} hxg6 $17 {[%emt 0:00:04]} 13. Nxg6 {[%emt 0:00:01] [#]} Kf7 $1 {[%emt 0:01:29]} 14. Nxh8+ {[%emt 0:00:15]} (14. Ndxe7 Nxe7) 14... Qxh8 {[%emt 0:00:04]} 15. f4 {[%emt 0:00:19]} (15. Qf3 $2 Nd4 16. Qd1 Nxd5 17. cxd5 Rg8 $19) (15. Nxe7 $17 Nxe7 16. Bg5) 15... e4 {[%emt 0:03:24] Threatens to win with ...Bg4.} 16. dxe4 {[%emt 0:02:01] [#]} (16. Nxf6 Bxf6 17. dxe4 Nd4 $17) (16. f5 $142 Nxd5 17. cxd5) 16... Rg8 {[%emt 0:01:01]} (16... Bg4 $1 $17 {[%cal Rg4d1]} 17. Qd3 Nd4) 17. Nxe7 $2 {[%emt 0:00:00]} (17. f5 $1 $11) 17... Kxe7 $40 {[%emt 0:00:12][%mdl 128] Black has strong attack.} (17... Nxe7 $19 {and Black stays clearly on top.} 18. f5 (18. Qxd6 $2 Bh3 $19) 18... Nxe4) 18. e5 {[%emt 0:00:00]} Ng4 $2 {[%emt 0:00:02][%mdl 8192] Black has more active pieces. The white rooks are badly placed.} (18... dxe5 19. fxe5 Ne4 20. Qd5 $11) (18... Ne4 $17 {and life is bright. And now ...Nd4 would win.} 19. Qd5 Bh3 20. exd6+ (20. Qxe4 Bxg2 21. exd6+ Kxd6 $17) 20... Kd7 21. Qxe4 Bxg2 22. Qxg2 (22. Qf5+ $2 Kd8 $19) 22... Qd4+ 23. Rf2 Qd1+ 24. Rf1 Rxg2+ 25. Kxg2 Qg4+ 26. Kh1 Qe2) 19. Qxd6+ $18 {[%emt 0:00:04]} Ke8 {[%emt 0:00:00][%csl Gg4][%cal Rh8h2]} 20. h3 {[%emt 0:00:01]} (20. Qxc5 $2 Qxh2#) 20... Nd4 $2 {[%emt 0:00:02]} (20... Bf5 $16 21. hxg4 Rxg4) 21. Re1 $4 {[%emt 0:00:28][%mdl 8192] [#]} (21. hxg4 $18 Ne2+ 22. Kf2) 21... Nf3+ $1 {[%emt 0:00:36][%mdl 576]} 22. gxf3 {[%emt 0:00:08]} (22. Kf1 Ngh2+) 22... Qxh3 {[%emt 0:00:01]} 23. Qb8+ {[%emt 0:00:10]} Ke7 {[%emt 0:00:03]} 24. Qd6+ {[%emt 0:00:04]} (24. Qxg8 $2 Qh2+ 25. Kf1 Qf2#) 24... Ke8 {[%emt 0:00:03][%cal Be7e8,Be8f7,Bf7f6][%mdl 32] Chess con chili.} 25. Qb8+ {[%emt 0:00:02]} (25. fxg4 $2 Rxg4+ 26. Kf2 Rg2+ 27. Kf1 Qh1#) 25... Kf7 {[%emt 0:00:22] Black mates.} 26. e6+ {[%emt 0:00:04]} Kf6 {[%emt 0:00:06]} ({Stronger than} 26... Bxe6 27. Qc7+ (27. Qxb7+ $2 {is the wrong capture.} Kf8 $19) 27... Kf6 28. Rxe6+ (28. fxg4 $2 {is a self mate.} Rxg4+ 29. Kf2 Rg2+ 30. Kf1 Qh1#) 28... Kxe6 29. f5+ (29. fxg4 $2 Rxg4+ 30. Kf2 Rg2+ 31. Kf1 Qh1#) 29... Kxf5 30. Qd7+ (30. fxg4+ Rxg4+) 30... Kf6 31. Qd6+ (31. fxg4 $2 Rxg4+ $19) 31... Kg7 32. Bg5 $11 (32. fxg4 $2 Qxg4+ 33. Kf2 Rf8+ $19)) 27. f5 {[%emt 0:00:30]} Rxb8 {[%emt 0:00:16]} 28. Bf4 {[%emt 0:00:05]} Rg8 {[%emt 0:00:16] Weighted Error Value: White=0.40/Black=0.72} 0-1

[Event "4th Tata Steel India Rapid Women 2022"]
[Site "Kolkota"]
[Date "2022.12.01"]
[Round "8.5"]
[White "Koneru, Humpy"]
[Black "Vantika Agrawal"]
[Result "1/2-1/2"]
[ECO "E71"]
[WhiteElo "2574"]
[BlackElo "2362"]
[Annotator "TA"]
[PlyCount "84"]
[EventDate "2022.11.29"]
[EventType "tourn"]
[EventCountry "IND"]
[SourceTitle "playchess.com"]
[Source "ChessBase"]
[SourceQuality "1"]
[TimeControl "900+10"]

{[%evp 10,84,38,28,59,40,56,26,31,25,21,17,27,0,12,0,29,23,26,11,11,23,10,17,33,20,33,10,39,31,59,56,75,59,56,64,70,44,51,0,14,25,21,48,26,25,45,13,28,4,4,0,0,0,0,0,10,0,0,0,0,-372,39,32,32,32,33,8,10,-10,-10,-10,-10,-10,-10,-10,-10]} 1. d4 {[%emt 0:00:03]} Nf6 {[%emt 0:00:02]} 2. c4 {[%emt 0:00:02]} g6 {[%emt 0:00:02]} 3. Nc3 {[%emt 0:00:04]} Bg7 {[%emt 0:00:02]} 4. e4 {[%emt 0:00:07]} d6 {[%emt 0:00:02]} 5. h3 {[%emt 0:00:10]} O-O {[%emt 0:00:04]} 6. Be3 {[%emt 0:00:06]} Nc6 {[%emt 0:00:36] E71: King's Indian: 4 e4 d6 5 h3.} 7. d5 {[%emt 0:01:45]} Ne5 {[%emt 0:00:04]} 8. Be2 {[%emt 0:00:40]} (8. f4 $5 {[%cal Rf4e5]} Ned7 9. g4 $11) 8... e6 {[%emt 0:00:36] White has an edge.} 9. Nf3 {[%emt 0:00:33]} Nxf3+ {[%emt 0:00:11]} 10. Bxf3 {[%emt 0:00:03]} Nd7 {[%emt 0:00:06]} 11. O-O {[%emt 0:02:05]} a5 {[%emt 0:00:26]} 12. Qc2 {[%emt 0:01:24]} e5 {[%emt 0:05:41] [#]} 13. Be2 $146 {[%emt 0:00:38]} ({Predecessor:} 13. Na4 b6 14. a3 f5 15. b4 axb4 16. axb4 Nf6 17. Nc3 Rxa1 18. Rxa1 f4 19. Bd2 {1-0 (62) Fedoseev,V (2687)-Mamedov,R (2654) Europe Echecs INT 2021}) 13... f5 {[%emt 0:00:47]} 14. exf5 {[%emt 0:00:47]} gxf5 {[%emt 0:00:02]} 15. f4 {[%emt 0:00:04]} exf4 {[%emt 0:00:49]} 16. Bxf4 {[%emt 0:00:25]} Ne5 {[%emt 0:00:07]} 17. Qd2 {[%emt 0:02:06]} Bd7 {[%emt 0:00:25]} 18. Nb5 {[%emt 0:01:18]} Bxb5 {[%emt 0:01:21]} 19. cxb5 {[%emt 0:00:03]} a4 {[%emt 0:00:09]} 20. Rac1 {[%emt 0:00:19]} a3 {[%emt 0:01:40] [#] aiming for ...axb2.} 21. b3 {[%emt 0:00:58]} Ng6 {[%emt 0:00:20]} 22. Bg5 {[%emt 0:02:25] This pair of bishops is nice.} Qd7 {[%emt 0:00:16][%cal Of5f4]} 23. Qc2 {[%emt 0:00:56]} Rf7 {[%emt 0:00:25]} 24. Bh5 {[%emt 0:01:04]} ({White should play} 24. Kh1 $14) 24... Qxb5 {[%emt 0:01:25]} 25. Rxf5 {[%emt 0:00:21]} Qc5+ {[%emt 0:01:09]} 26. Qxc5 {[%emt 0:00:10]} dxc5 {[%emt 0:00:02]} 27. Rxf7 {[%emt 0:00:22]} Kxf7 {[%emt 0:00:04]} 28. Rf1+ {[%emt 0:00:26]} (28. Rxc5 $2 {too greedy.} Bd4+ 29. Kf1 Bxc5 $19) 28... Kg8 {[%emt 0:00:24]} 29. Bg4 {[%emt 0:00:05]} Bd4+ {[%emt 0:00:17]} 30. Kh1 {[%emt 0:00:12]} Rf8 {[%emt 0:00:44]} 31. Be6+ {[%emt 0:00:12]} Kg7 {[%emt 0:00:06]} 32. Rxf8 {[%emt 0:00:09]} Kxf8 $11 {[%emt 0:00:30][%mdl 4096] Endgame KBB-KBN} 33. g4 {[%emt 0:00:23]} b5 {[%emt 0:00:20]} 34. Bf5 {[%emt 0:00:11]} Kg7 {[%emt 0:01:10]} 35. Kg2 $2 {[%emt 0:00:09][%mdl 8192] [#]} (35. Be4 $11) 35... Ne5 $2 {[%emt 0:00:05]} (35... h6 $19 36. Bxg6 Kxg6) 36. Bf4 {[%emt 0:00:09]} b4 {[%emt 0:00:12]} 37. Bc2 {[%emt 0:00:06]} h6 {[%emt 0:00:23]} 38. Kg3 {[%emt 0:00:04]} c4 $1 {[%emt 0:00:13] The position is equal.} 39. Bxe5+ {[%emt 0:00:21]} Bxe5+ {[%emt 0:00:02]} 40. Kf3 {[%emt 0:00:01]} cxb3 {[%emt 0:00:16]} 41. Bxb3 {[%emt 0:00:02]} Kf6 {[%emt 0:00:09]} 42. h4 {[%emt 0:00:02]} Bd6 {[%emt 0:00:11] Weighted Error Value: White=0.32/Black=0.25 (precise)} 1/2-1/2

[Event "4th Tata Steel India Rapid Women 2022"]
[Site "Kolkota"]
[Date "2022.12.01"]
[Round "9.1"]
[White "Vantika Agrawal"]
[Black "Muzychuk, Anna"]
[Result "1-0"]
[ECO "D11"]
[WhiteElo "2362"]
[BlackElo "2525"]
[Annotator "TA"]
[PlyCount "83"]
[EventDate "2022.11.29"]
[EventType "tourn"]
[EventCountry "IND"]
[SourceTitle "playchess.com"]
[Source "ChessBase"]
[SourceQuality "1"]
[TimeControl "900+10"]

{[%evp 9,83,24,33,29,29,25,22,18,36,12,27,0,0,0,23,30,42,32,60,70,59,72,87,101,114,114,92,111,114,114,129,114,114,114,114,114,114,114,130,124,132,134,161,171,170,167,200,210,332,267,339,314,330,316,637,639,562,500,491,462,478,475,455,447,446,445,723,704,1654,1750,1695,1735,1717,1625,1446,1258]} 1. d4 {[%emt 0:00:03]} d5 {[%emt 0:00:02]} 2. c4 {[%emt 0:00:05]} c6 {[%emt 0:00:01]} 3. Nf3 {[%emt 0:00:02]} Nf6 {[%emt 0:00:01]} 4. e3 {[%emt 0:00:12]} Bg4 {[%emt 0:00:04]} 5. h3 {[%emt 0:00:06]} Bh5 {[%emt 0:00:05]} 6. g4 {[%emt 0:00:28] D11: Slav Defence: 3 Nf3 sidelines and 3...Nf6 4 e3 Bg4.} Bg6 {[%emt 0:00:02]} 7. Ne5 {[%emt 0:00:03]} Nbd7 {[%emt 0:00:08]} 8. Nxg6 {[%emt 0:01:50] The position is equal.} hxg6 {[%emt 0:00:02]} 9. Qb3 {[%emt 0:01:11] 9.Qb3 has lost popularity.} Qb6 {[%emt 0:01:22]} 10. Bg2 {[%emt 0:00:25]} (10. g5 $5 {[%cal Rg5f6]} Ne4 11. cxd5 $14) 10... e6 {[%emt 0:00:21]} 11. Nc3 {[%emt 0:00:29]} Be7 {[%emt 0:01:17]} 12. g5 {[%emt 0:01:25]} Nh5 {[%emt 0:00:09]} 13. h4 {[%emt 0:01:35] [#]} (13. cxd5 {simplifies} exd5 14. h4 Qc7 15. Bd2) 13... Qb4 $146 {[%emt 0:02:55]} ({Predecessor:} 13... Qxb3 14. axb3 a6 15. Bd2 f5 16. gxf6 gxf6 17. cxd5 exd5 18. e4 dxe4 19. Bxe4 f5 {1-0 (49) Kunin,V (2561)-Hilverda,A (2385) Saarbruecken 2015}) 14. c5 {[%emt 0:01:12]} Qxb3 {[%emt 0:00:08]} 15. axb3 {[%emt 0:00:02]} a6 {[%emt 0:00:08]} 16. b4 {[%emt 0:00:12]} Rd8 {[%emt 0:00:09]} 17. e4 {[%emt 0:01:55]} dxe4 {[%emt 0:01:55]} 18. Bxe4 {[%emt 0:00:15]} Nf8 {[%emt 0:01:22]} 19. Ne2 {[%emt 0:00:57]} Rd7 {[%emt 0:01:08]} 20. Be3 {[%emt 0:00:16]} Bd8 {[%emt 0:00:22]} 21. O-O-O {[%emt 0:01:18]} Bc7 {[%emt 0:00:33]} 22. Kc2 {[%emt 0:00:15]} Rd8 {[%emt 0:00:20]} 23. Ra1 {[%emt 0:02:01][%cal Ob4b5] Strongly threatening b5!} f5 {[%emt 0:01:08]} 24. Bf3 {[%emt 0:00:29][%cal Ob4b5] Black must now prevent b5!} e5 {[%emt 0:00:19] Prevents b5.} 25. dxe5 {[%emt 0:00:44][%cal Ob4b5] Threatens to win with b5! White is more active.} Bxe5 {[%emt 0:00:22] [#]} 26. b5 $1 {[%emt 0:00:25]} axb5 {[%emt 0:00:22]} 27. Ra7 {[%emt 0:00:03]} Rd7 {[%emt 0:00:05] [#]} 28. Rd1 $1 {[%emt 0:00:41][%cal Bh1d1,Bd1d8,Bd8c8][%mdl 1056] White has strong compensation.} Re7 {[%emt 0:03:11]} (28... Rxd1 {keeps fighting.} 29. Kxd1 Ne6) 29. Ra8+ $18 {[%emt 0:00:54]} Kf7 {[%emt 0:00:01]} 30. Rdd8 {[%emt 0:00:15]} Bc7 {[%emt 0:00:46]} 31. Rdc8 {[%emt 0:00:06]} f4 $2 {[%emt 0:00:29]} (31... Be5 32. Kb1 Rd7) 32. Bd4 {[%emt 0:00:13] White is clearly winning.} Rg8 {[%emt 0:00:08]} 33. Kd3 {[%emt 0:00:13]} Rd7 {[%emt 0:00:22]} 34. Bxh5 {[%emt 0:00:18]} gxh5 {[%emt 0:00:01]} 35. g6+ {[%emt 0:00:01][%mdl 64] Deflection} Kxg6 {[%emt 0:01:12][%cal Of4f3]} 36. Rxf8 {[%emt 0:00:03]} Rxf8 {[%emt 0:00:00]} 37. Rxf8 {[%emt 0:00:02]} Kh6 {[%emt 0:00:00]} (37... Kh7 $142 38. Nxf4 Bd8) 38. Nxf4 {[%emt 0:00:09][%cal Rf8h8]} Kh7 {[%emt 0:00:12] Inhibits Rh8+.} 39. Ne6 {[%emt 0:00:22] aiming for f4.} ({Weaker is} 39. Nxh5 Be5 $16) 39... Be5 {[%emt 0:00:06]} 40. Rd8 {[%emt 0:00:20]} Rxd8 {[%emt 0:00:13]} 41. Nxd8 {[%emt 0:00:02]} Bc7 {[%emt 0:00:02]} 42. Ne6 {[%emt 0:00:11] Weighted Error Value: White=0.07 (flawless) /Black=0.32} 1-0